bitfinex/quotes_BTCUSD_20220201
["timestamp","ask_amount","ask_price","bid_price","bid_amount"]
[1643673602024,0.01727,38502.0,38500.0,0.00565453]
[1643673602421,0.01727,38502.0,38501.0,0.10064751]
[1643673603021,0.01727,38502.0,38501.0,0.10244772]
[1643673603422,0.01727,38502.0,38501.0,0.35810225]
[1643673603622,0.01727,38502.0,38501.0,0.10810225]
[1643673607458,0.01727,38502.0,38501.0,0.35810225]
[1643673608058,0.01727,38502.0,38501.0,0.10810225]
[1643673608558,0.01727,38502.0,38501.0,0.00745474]
[1643673609408,0.01727,38502.0,38501.0,0.06928988]
[1643673610911,0.01727,38502.0,38501.0,0.16820808]
[1643673611711,0.25457153,38502.0,38501.0,0.16820808]
[1643673611910,0.01727,38502.0,38501.0,0.06928988]
[1643673615369,0.01727,38502.0,38501.0,0.06948988]
[1643673615875,0.01727,38502.0,38492.0,0.47]
[1643673615876,0.35,38500.0,38492.0,0.47]
[1643673616071,0.403693,38499.0,38493.0,0.15166676]
[1643673616273,0.16927,38499.0,38492.0,0.05]
[1643673616473,0.21927,38499.0,38497.0,0.01931472]
[1643673616671,0.61783027,38498.0,38497.0,0.01931472]
[1643673616929,2.47901473,38498.0,38497.0,0.01931472]
[1643673617130,2.59599973,38498.0,38497.0,0.01931472]
[1643673618030,2.60195535,38498.0,38497.0,0.01931472]
[1643673618632,2.60195535,38498.0,38492.0,0.05]
[1643673618832,0.54930471,38497.0,38492.0,0.05]
[1643673619032,0.351693,38496.0,38492.0,0.05]
[1643673619233,0.15,38495.0,38492.0,0.05]
[1643673619434,0.351693,38494.0,38493.0,0.00128017]
[1643673619635,0.401693,38494.0,38493.0,0.00128017]
[1643673619833,0.451693,38494.0,38493.0,0.00128017]
[1643673620435,0.451693,38494.0,38492.0,0.05]
[1643673620662,0.451693,38494.0,38492.0,0.05128018]
[1643673620860,0.1,38493.0,38492.0,0.05128018]
[1643673621060,0.451693,38493.0,38492.0,0.05128018]
[1643673621258,0.69859763,38493.0,38486.0,0.25878234]
[1643673621459,0.34690463,38493.0,38485.0,0.27021249]
[1643673621658,0.02091721,38488.0,38485.0,0.27021249]
[1643673621858,0.015064,38488.0,38485.0,0.01143015]
[1643673622460,0.10326379,38487.0,38485.0,0.01143015]
[1643673623562,0.23587065,38486.0,38485.0,0.01143015]
[1643673623761,0.33587065,38486.0,38485.0,0.01143015]
[1643673624165,0.1,38486.0,38485.0,0.01143015]
[1643673624424,0.37141284,38486.0,38485.0,0.01143015]
[1643673625231,0.42141284,38486.0,38485.0,0.01143015]
[1643673625425,1.0832213,38486.0,38485.0,0.01143015]
[1643673625625,1.0832213,38486.0,38484.0,0.00071174]
[1643673625626,0.7,38485.0,38484.0,0.00071174]
[1643673625824,1.41380846,38485.0,38484.0,0.00071174]
[1643673626026,1.153693,38485.0,38484.0,0.00071174]
[1643673626229,0.29592119,38475.0,38473.0,0.01143015]
[1643673626428,0.22288344,38474.0,38473.0,0.01143015]
[1643673626624,0.27288344,38474.0,38473.0,0.01143015]
[1643673626927,0.37288344,38474.0,38473.0,0.01143015]
[1643673627130,0.72457644,38474.0,38473.0,0.01143015]
[1643673627326,0.81523886,38474.0,38473.0,0.01143015]
[1643673627527,1.07535432,38474.0,38473.0,0.01143015]
[1643673627733,0.86723886,38474.0,38473.0,0.01143015]
[1643673627928,3.24574954,38474.0,38473.0,0.01143015]
[1643673628173,3.25171685,38474.0,38473.0,0.01308814]
[1643673628374,0.065026,38472.0,38465.0,0.0228603]
[1643673628575,0.10216827,38467.0,38465.0,0.03429045]
[1643673628774,0.59233417,38466.0,38465.0,0.03429045]
[1643673629174,0.74433417,38466.0,38465.0,0.03429045]
[1643673629374,0.69233417,38466.0,38465.0,0.03429045]
[1643673629778,0.87956548,38466.0,38465.0,0.03429045]
[1643673629975,0.64038611,38466.0,38465.0,0.03429045]
[1643673630176,0.61441276,38466.0,38465.0,0.28429045]
[1643673630379,0.47155933,38466.0,38465.0,0.03429045]
[1643673630776,1.66315933,38466.0,38465.0,0.03429045]
[1643673630976,0.77183933,38466.0,38465.0,0.03429045]
[1643673631813,0.85126683,38466.0,38465.0,0.03429045]
[1643673632214,0.78910933,38466.0,38465.0,0.03429045]
[1643673632414,0.75139933,38466.0,38465.0,0.03429045]
[1643673632815,0.9766769,38466.0,38465.0,0.03429045]
[1643673633018,1.24932366,38466.0,38463.0,0.05]
[1643673633216,0.84501034,38464.0,38463.0,0.05]
[1643673633417,0.54501034,38464.0,38463.0,0.05]
[1643673633616,0.69701034,38464.0,38463.0,0.05]
[1643673634817,2.32928552,38464.0,38463.0,0.05]
[1643673635117,0.668735,38464.0,38463.0,0.05]
[1643673635319,0.618735,38464.0,38463.0,0.05]
[1643673635570,0.87101018,38464.0,38463.0,0.05]
[1643673635760,0.35,38463.0,38462.0,0.00108308]
[1643673635961,1.14241718,38463.0,38462.0,0.00108308]
[1643673636160,1.04106243,38463.0,38462.0,0.00108308]
[1643673636959,1.04062655,38463.0,38461.0,0.01]
[1643673637161,0.35,38461.0,38457.0,0.05115075]
[1643673637361,0.351832,38458.0,38457.0,0.05115075]
[1643673637561,0.64973154,38458.0,38457.0,0.05115075]
[1643673637763,0.74973154,38458.0,38457.0,0.05115075]
[1643673637960,0.73607801,38458.0,38457.0,0.05115075]
[1643673638166,1.28632332,38458.0,38457.0,0.05115075]
[1643673638363,1.28632332,38458.0,38457.0,0.0397206]
[1643673638561,1.30359332,38458.0,38457.0,0.0397206]
[1643673638766,1.16415823,38458.0,38457.0,0.0397206]
[1643673639165,0.78795558,38458.0,38457.0,0.0397206]
[1643673639413,0.78795558,38458.0,38457.0,0.02829045]
[1643673639913,1.21128125,38458.0,38457.0,0.02829045]
[1643673640518,1.21128125,38458.0,38457.0,0.0168603]
[1643673640720,1.48608599,38458.0,38457.0,0.0168603]
[1643673641517,1.48608599,38458.0,38457.0,0.01143015]
[1643673641719,1.38608599,38458.0,38457.0,0.01143015]
[1643673641918,1.11128125,38458.0,38457.0,0.01143015]
[1643673642120,1.110293,38458.0,38457.0,0.01143015]
[1643673642518,1.160293,38458.0,38456.0,0.00113114]
[1643673642718,1.05278807,38457.0,38456.0,0.00113114]
[1643673642918,1.10478807,38457.0,38450.0,0.00452526]
[1643673643160,1.10478807,38457.0,38449.0,0.05115074]
[1643673643161,1.12205807,38457.0,38455.0,0.00113116]
[1643673643364,0.60314172,38456.0,38455.0,0.00113116]
[1643673643562,0.93607606,38456.0,38455.0,0.00113116]
[1643673643761,1.17360131,38456.0,38455.0,0.00113116]
[1643673643963,1.07360131,38456.0,38455.0,0.00113116]
[1643673644262,1.17360131,38456.0,38449.0,0.05115074]
[1643673644460,0.1,38455.0,38454.0,0.0011312]
[1643673644661,0.78389914,38455.0,38454.0,0.0011312]
[1643673645060,1.02675805,38455.0,38454.0,0.0011312]
[1643673645460,1.02675805,38455.0,38449.0,0.05115074]
[1643673645663,0.35187,38454.0,38453.0,0.00113436]
[1643673645863,0.71444411,38454.0,38453.0,0.00113436]
[1643673646262,0.73171411,38454.0,38453.0,0.00113436]
[1643673646662,0.88371411,38454.0,38449.0,0.03972059]
[1643673646918,0.88371411,38454.0,38449.0,0.03107108]
[1643673646919,0.35187,38450.0,38449.0,0.03107108]
[1643673647118,0.35187,38450.0,38449.0,0.04250123]
[1643673647119,0.59230946,38450.0,38449.0,0.04250123]
[1643673647318,0.69231456,38450.0,38449.0,0.04250123]
[1643673647519,0.98728735,38450.0,38449.0,0.04250123]
[1643673647721,1.03928735,38450.0,38449.0,0.04250123]
[1643673647920,0.74684279,38450.0,38449.0,0.04250123]
[1643673648819,0.76809963,38450.0,38449.0,0.04250123]
[1643673649419,0.78536963,38450.0,38449.0,0.04250123]
[1643673650019,0.70908734,38450.0,38449.0,0.04250123]
[1643673650220,0.70908734,38450.0,38449.0,0.04850124]
[1643673650871,0.46914,38450.0,38449.0,0.03850124]
[1643673651266,0.46914,38450.0,38449.0,0.04393137]
[1643673651868,0.46798144,38450.0,38449.0,0.04393137]
[1643673653271,0.46798144,38450.0,38449.0,0.03393137]
[1643673653870,0.46798144,38450.0,38449.0,0.02250122]
[1643673654812,0.71046504,38450.0,38449.0,0.03393137]
[1643673655011,0.71046504,38450.0,38449.0,0.02829043]
[1643673655911,0.79463504,38450.0,38449.0,0.02250121]
[1643673656917,0.79463504,38450.0,38449.0,0.01850123]
[1643673657915,0.79463504,38450.0,38449.0,0.02393136]
[1643673658761,0.79463504,38450.0,38449.0,0.01393136]
[1643673660160,0.79029684,38450.0,38449.0,0.01393136]
[1643673660565,0.7,38449.0,38442.0,0.00504664]
[1643673660766,0.351928,38445.0,38442.0,0.00504664]
[1643673660966,0.35,38443.0,38436.0,0.0011]
[1643673661163,0.6034437,38442.0,38436.0,0.0011]
[1643673661362,0.039547,38438.0,38436.0,0.0011]
[1643673661570,1.25397787,38437.0,38436.0,0.0011]
[1643673661827,1.80590587,38437.0,38436.0,0.0011]
[1643673662624,0.9605592,38437.0,38436.0,0.0011]
[1643673662828,0.403928,38437.0,38436.0,0.0011]
[1643673663024,0.403928,38437.0,38436.0,0.00281457]
[1643673663225,0.403928,38437.0,38432.0,0.10203772]
[1643673663423,0.052,38437.0,38432.0,0.09485229]
[1643673663623,0.00597892,38438.0,38432.0,0.09485229]
[1643673663826,0.27192954,38433.0,38431.0,0.01]
[1643673664625,0.351928,38432.0,38431.0,0.01]
[1643673664825,0.451928,38432.0,38431.0,0.01]
[1643673665670,0.351928,38432.0,38431.0,0.01]
[1643673666069,0.27192954,38433.0,38431.0,0.01]
[1643673667270,0.351928,38432.0,38431.0,0.01]
[1643673667469,0.428138,38432.0,38431.0,0.01]
[1643673667670,0.545408,38432.0,38431.0,0.01]
[1643673668068,0.63496817,38432.0,38431.0,0.01]
[1643673672821,0.68496817,38432.0,38431.0,0.01]
[1643673673079,0.94842516,38432.0,38431.0,0.01]
[1643673673267,0.94842516,38432.0,38430.0,0.00323899]
[1643673673464,0.9972483,38431.0,38430.0,0.00323899]
[1643673673668,0.7,38430.0,38424.0,0.0049567]
[1643673673865,0.7,38430.0,38410.0,0.230189]
[1643673673866,0.77017442,38429.0,38412.0,0.1]
[1643673674064,0.24432263,38425.0,38423.0,0.0048118]
[1643673674266,0.68059576,38424.0,38423.0,0.0048118]
[1643673674465,0.77120576,38424.0,38423.0,0.0048118]
[1643673675065,0.87120576,38424.0,38423.0,0.0048118]
[1643673675466,1.15709145,38424.0,38422.0,0.002]
[1643673675666,0.56721052,38423.0,38422.0,0.002]
[1643673675869,0.91913852,38423.0,38422.0,0.002]
[1643673676167,0.76913852,38423.0,38422.0,0.002]
[1643673676819,1.06913852,38423.0,38422.0,0.002]
[1643673677018,2.264312,38423.0,38422.0,0.002]
[1643673677619,1.964312,38423.0,38422.0,0.002]
[1643673677820,0.4,38422.0,38415.0,0.00540997]
[1643673678025,0.21943126,38416.0,38415.0,0.00540997]
[1643673678221,0.351928,38416.0,38415.0,0.00540997]
[1643673678421,0.351928,38418.0,38415.0,0.00540997]
[1643673678620,0.351928,38418.0,38414.0,0.00504046]
[1643673679021,0.59687506,38417.0,38414.0,0.00504046]
[1643673679222,0.351928,38416.0,38414.0,0.00504046]
[1643673679421,0.24214691,38415.0,38414.0,0.00504046]
[1643673679623,0.69407491,38415.0,38414.0,0.00504046]
[1643673680022,0.469198,38415.0,38414.0,0.00504046]
[1643673680424,0.7117352,38415.0,38414.0,0.00504046]
[1643673681765,2.0917352,38415.0,38414.0,0.00504046]
[1643673682766,0.469198,38415.0,38414.0,0.00504046]
[1643673682964,0.47517155,38415.0,38414.0,0.00504046]
[1643673683166,0.97517155,38415.0,38414.0,0.00504046]
[1643673683565,0.29929975,38408.0,38407.0,0.01094649]
[1643673683766,0.23998494,38414.0,38407.0,0.01498472]
[1643673683966,0.01727,38408.0,38407.0,0.01498472]
[1643673684617,0.01727,38408.0,38407.0,0.35960068]
[1643673684816,0.01727,38408.0,38407.0,0.77960068]
[1643673685216,0.01727,38408.0,38407.0,1.13152868]
[1643673685818,0.00597355,38415.0,38407.0,1.28152868]
[1643673686018,0.00597355,38415.0,38414.0,0.1]
[1643673686220,0.25554118,38427.0,38414.0,0.553928]
[1643673686417,0.00140697,38429.0,38414.0,0.102]
[1643673686617,0.25518334,38427.0,38417.0,0.00582123]
[1643673686822,0.09006407,38425.0,38419.0,0.10204392]
[1643673687017,0.25518334,38427.0,38422.0,0.28030226]
[1643673687317,0.25518334,38427.0,38419.0,0.10204392]
[1643673687818,0.00140697,38429.0,38419.0,0.10204392]
[1643673688082,0.00140388,38429.0,38420.0,0.31045729]
[1643673688272,0.00140388,38429.0,38421.0,0.351928]
[1643673688473,0.00140388,38429.0,38422.0,0.052]
[1643673688875,0.00140388,38429.0,38422.0,0.3008748]
[1643673689172,0.0028078,38429.0,38422.0,0.63567113]
[1643673689573,0.07376816,38427.0,38422.0,0.63567113]
[1643673689775,0.00140392,38429.0,38422.0,0.63567113]
[1643673689976,0.00140392,38429.0,38423.0,0.05]
[1643673690178,0.0011794,38429.0,38423.0,0.05]
[1643673690977,0.46754495,38435.0,38423.0,0.05]
[1643673691274,0.0862387,38429.0,38423.0,0.05]
[1643673691476,0.00111175,38429.0,38422.0,0.065085]
[1643673691837,0.00111175,38429.0,38419.0,0.16944434]
[1643673691838,0.05944056,38428.0,38419.0,0.00104434]
[1643673692031,0.60636692,38427.0,38419.0,0.00104434]
[1643673692231,0.152,38426.0,38416.0,0.00318862]
[1643673692430,0.46384278,38425.0,38416.0,0.00318862]
[1643673692632,0.26332164,38419.0,38416.0,0.00318862]
[1643673692934,0.26332164,38419.0,38415.0,0.03455893]
[1643673692935,0.09020131,38418.0,38415.0,0.03455893]
[1643673693734,0.09020131,38418.0,38415.0,0.03567489]
[1643673693933,0.32800774,38418.0,38415.0,0.03567489]
[1643673694133,0.09020131,38418.0,38415.0,0.03567489]
[1643673694733,0.09020131,38418.0,38415.0,0.03455893]
[1643673694934,0.09020131,38418.0,38415.0,0.03567489]
[1643673694935,0.43021571,38418.0,38415.0,0.03567489]
[1643673695133,0.27736131,38418.0,38415.0,0.03567489]
[1643673695971,0.27736131,38418.0,38415.0,0.03455893]
[1643673696172,0.27736131,38418.0,38415.0,0.03567489]
[1643673696376,0.30998131,38418.0,38415.0,0.03567489]
[1643673697374,0.30998131,38418.0,38415.0,0.03455893]
[1643673697575,0.30998131,38418.0,38415.0,0.03567489]
[1643673697975,0.30998131,38418.0,38417.0,0.00167082]
[1643673698178,0.66190931,38418.0,38417.0,0.00167082]
[1643673698873,0.62928931,38418.0,38417.0,0.00167082]
[1643673699075,0.351928,38418.0,38417.0,0.00167082]
[1643673699322,0.00744056,38425.0,38417.0,0.00167082]
[1643673699924,0.2287351,38424.0,38418.0,0.28658219]
[1643673700124,0.08420549,38420.0,38418.0,0.28658219]
[1643673700923,0.08420549,38420.0,38417.0,0.00167082]
[1643673701123,0.08420549,38420.0,38417.0,0.0027654]
[1643673702123,0.08420549,38420.0,38417.0,0.00167082]
[1643673702326,0.08420549,38420.0,38417.0,0.00277021]
[1643673702629,0.20477771,38422.0,38417.0,0.00277021]
[1643673703078,0.41187948,38425.0,38419.0,0.00195449]
[1643673703275,0.351928,38424.0,38419.0,0.00195449]
[1643673703671,0.1,38423.0,38419.0,0.00195449]
[1643673703871,0.351928,38422.0,38419.0,0.00195449]
[1643673704474,0.08953856,38420.0,38419.0,0.00447472]
[1643673704774,0.44146656,38420.0,38419.0,0.00557297]
[1643673705573,0.44146656,38420.0,38419.0,0.0080932]
[1643673705778,0.44146656,38420.0,38419.0,0.00699495]
[1643673706374,0.351928,38420.0,38419.0,0.00142198]
[1643673706575,0.351928,38421.0,38419.0,0.00394221]
[1643673706817,0.351928,38422.0,38419.0,0.00394221]
[1643673707211,0.1,38421.0,38419.0,0.00394221]
[1643673707412,0.351928,38420.0,38419.0,0.00394221]
[1643673707614,0.351928,38420.0,38419.0,0.00646244]
[1643673707812,0.15,38421.0,38419.0,0.00646244]
[1643673708013,0.15,38421.0,38420.0,0.00175768]
[1643673708215,0.05,38421.0,38420.0,0.00175768]
[1643673708613,0.14852312,38423.0,38420.0,0.00175768]
[1643673708813,0.351928,38422.0,38420.0,0.00175768]
[1643673709214,0.1,38421.0,38420.0,0.00175768]
[1643673709513,0.351928,38421.0,38420.0,0.00427791]
[1643673709713,0.14852312,38423.0,38420.0,0.00427791]
[1643673709714,0.351928,38422.0,38420.0,0.00427791]
[1643673710315,1.02539221,38421.0,38420.0,0.00252023]
[1643673710572,1.02539221,38421.0,38420.0,0.00504046]
[1643673710573,0.62039221,38421.0,38420.0,0.00504046]
[1643673710771,0.2873015,38430.0,38420.0,0.65504046]
[1643673710980,0.00127622,38428.0,38422.0,0.1]
[1643673711170,0.00127622,38428.0,38424.0,0.1]
[1643673711171,7.622e-05,38428.0,38424.0,0.1]
[1643673711369,0.38240944,38443.0,38424.0,0.1]
[1643673711370,0.25443892,38440.0,38427.0,0.352056]
[1643673711569,0.32702643,38443.0,38426.0,0.04038075]
[1643673711767,0.32702643,38443.0,38422.0,0.1226]
[1643673711768,0.10096026,38435.0,38422.0,0.1226]
[1643673711969,0.25443892,38434.0,38422.0,0.1176]
[1643673712169,0.25443892,38434.0,38427.0,0.01968802]
[1643673712170,0.34148245,38433.0,38427.0,0.01968802]
[1643673712369,0.34148245,38433.0,38415.0,0.02180901]
[1643673712370,0.65,38427.0,38415.0,0.02180901]
[1643673712570,0.4,38424.0,38411.0,0.07037359]
[1643673712770,0.65,38421.0,38402.0,0.32764735]
[1643673712977,0.65,38421.0,38401.0,0.01]
[1643673712978,0.039,38410.0,38401.0,0.01]
[1643673713171,0.35643892,38409.0,38399.0,0.00010693]
[1643673713370,0.35643892,38409.0,38394.0,0.32764735]
[1643673713371,0.7,38406.0,38386.0,0.3755911]
[1643673713574,0.7,38406.0,38382.0,0.926053]
[1643673713575,0.95603892,38405.0,38387.0,0.3833757]
[1643673713769,0.2632505,38391.0,38383.0,0.40454684]
[1643673713969,0.2632505,38391.0,38383.0,0.02117114]
[1643673713970,0.31284067,38390.0,38383.0,0.02117114]
[1643673714167,0.31084067,38390.0,38383.0,0.02117114]
[1643673714423,0.052,38390.0,38383.0,0.02117114]
[1643673715020,0.09554044,38385.0,38383.0,0.02117114]
[1643673715220,0.09554044,38385.0,38383.0,0.42117114]
[1643673715221,0.14204137,38384.0,38383.0,0.42117114]
[1643673715723,0.14204137,38384.0,38383.0,0.02117114]
[1643673715921,0.039399,38384.0,38383.0,0.02117114]
[1643673716124,0.039399,38388.0,38383.0,0.02117114]
[1643673716322,0.16290482,38387.0,38383.0,0.02117114]
[1643673716521,0.039399,38386.0,38383.0,0.02117114]
[1643673717122,0.039399,38387.0,38383.0,0.02117114]
[1643673717323,0.052,38386.0,38383.0,0.02117114]
[1643673717522,0.20934109,38385.0,38383.0,0.02117114]
[1643673717722,0.27244916,38384.0,38383.0,0.02117114]
[1643673717922,0.55900987,38384.0,38383.0,0.02117114]
[1643673718173,0.55900987,38384.0,38370.0,0.001109]
[1643673718174,0.08176457,38380.0,38370.0,0.001109]
[1643673718375,0.22656685,38379.0,38370.0,0.001109]
[1643673718576,0.25932434,38373.0,38370.0,0.001109]
[1643673719174,0.14323115,38372.0,38370.0,0.001109]
[1643673719375,0.4,38371.0,38370.0,0.0007046]
[1643673719576,0.491399,38371.0,38370.0,0.0007046]
[1643673719775,0.49110651,38371.0,38370.0,0.0007046]
[1643673719977,0.49110651,38371.0,38353.0,0.45738418]
[1643673719978,0.7,38370.0,38353.0,0.45738418]
[1643673720278,0.08465939,38365.0,38351.0,0.0158487]
[1643673720480,0.2913062,38364.0,38351.0,0.0158487]
[1643673720674,0.039399,38363.0,38351.0,0.0108487]
[1643673720876,0.039399,38363.0,38358.0,0.02042336]
[1643673721284,0.21321835,38360.0,38358.0,0.02042336]
[1643673721583,0.21321835,38360.0,38351.0,0.0108487]
[1643673721584,0.4,38358.0,38351.0,0.0108487]
[1643673721819,0.091399,38357.0,38351.0,0.0108487]
[1643673722022,0.2393062,38356.0,38351.0,0.0108487]
[1643673722217,0.091399,38355.0,38351.0,0.0108487]
[1643673722619,0.47503237,38354.0,38351.0,0.0108487]
[1643673722817,0.1323076,38353.0,38351.0,0.0108487]
[1643673723618,0.039399,38353.0,38351.0,0.0108487]
[1643673723828,0.02042336,38359.0,38355.0,0.01737411]
[1643673724419,0.02042336,38359.0,38358.0,0.752056]
[1643673724620,0.02042336,38359.0,38358.0,0.99239083]
[1643673724819,0.02042336,38359.0,38358.0,1.46320211]
[1643673725019,0.05,38381.0,38359.0,0.4]
[1643673725219,2.76005634,38383.0,38360.0,0.4913062]
[1643673725418,0.039399,38382.0,38360.0,0.4913062]
[1643673725900,2.76005634,38383.0,38364.0,0.065175]
[1643673726097,0.09022211,38372.0,38365.0,0.052]
[1643673727198,0.09022211,38372.0,38366.0,0.29270265]
[1643673727397,0.09022211,38372.0,38367.0,0.052]
[1643673727596,0.09022211,38372.0,38368.0,0.25706626]
[1643673727799,0.09022211,38372.0,38369.0,0.23039759]
[1643673728200,0.09022211,38372.0,38367.0,0.00159462]
[1643673728402,0.09022211,38372.0,38358.0,0.25989578]
[1643673728403,0.09022211,38372.0,38358.0,0.0204]
[1643673728404,0.039399,38368.0,38358.0,0.0204]
[1643673728599,0.23949578,38367.0,38358.0,0.0204]
[1643673728801,0.33949578,38370.0,38358.0,0.0204]
[1643673729002,0.33949578,38370.0,38367.0,0.00079909]
[1643673729003,0.28488348,38369.0,38367.0,0.00079909]
[1643673729197,0.95512526,38368.0,38367.0,0.00079909]
[1643673729426,1.00512526,38368.0,38367.0,0.00079909]
[1643673729621,1.10512526,38368.0,38367.0,0.00079909]
[1643673730224,1.15712526,38368.0,38367.0,0.00079909]
[1643673730423,0.06342454,38372.0,38367.0,0.00079909]
[1643673730623,0.052,38378.0,38368.0,0.4]
[1643673730824,0.005,38379.0,38368.0,0.4]
[1643673731023,0.005,38379.0,38372.0,0.09148877]
[1643673731324,2.94938159,38383.0,38373.0,0.3]
[1643673731529,3.58961062,38383.0,38373.0,0.54876397]
[1643673732124,0.06519,38380.0,38373.0,0.54876397]
[1643673732323,0.06519,38380.0,38372.0,0.09148877]
[1643673732525,0.1398363,38379.0,38372.0,0.09148877]
[1643673732724,0.165189,38379.0,38372.0,0.09148877]
[1643673733175,0.06519,38380.0,38373.0,0.4]
[1643673733376,0.06519,38380.0,38373.0,0.65603999]
[1643673733577,0.47830833,38383.0,38373.0,0.65603999]
[1643673733578,0.00448698,38383.0,38373.0,0.65603999]
[1643673733775,0.00448698,38383.0,38380.0,0.09286072]
[1643673733974,0.00448698,38383.0,38373.0,0.65603999]
[1643673734176,0.00448698,38383.0,38374.0,0.23099398]
[1643673734377,0.00448698,38383.0,38375.0,0.23398073]
[1643673734587,0.441473,38388.0,38380.0,0.21039143]
[1643673734588,0.2552688,38388.0,38380.0,0.21039143]
[1643673734776,0.63319956,38397.0,38385.0,0.02076076]
[1643673734777,0.625759,38397.0,38385.0,0.02076076]
[1643673734976,0.5,38396.0,38385.0,0.02047595]
[1643673735176,0.155027,38397.0,38385.0,0.02047595]
[1643673735374,0.155027,38397.0,38385.0,0.306323]
[1643673735375,0.220186,38397.0,38385.0,0.306323]
[1643673735574,1.600186,38397.0,38385.0,0.306323]
[1643673735774,0.23497143,38393.0,38385.0,0.306323]
[1643673735975,0.02947977,38391.0,38385.0,0.39404275]
[1643673736175,0.065165,38392.0,38385.0,0.39404275]
[1643673736376,0.06516219,38395.0,38385.0,0.39404275]
[1643673736834,0.065158,38397.0,38385.0,0.39404275]
[1643673737226,0.29370169,38395.0,38386.0,0.29353319]
[1643673737429,0.130316,38397.0,38391.0,0.10354378]
[1643673737927,0.130316,38397.0,38391.0,0.34989372]
[1643673738228,0.260625,38401.0,38391.0,0.34989372]
[1643673738427,0.065151,38400.0,38392.0,0.51576792]
[1643673738626,0.065151,38402.0,38392.0,0.51156374]
[1643673738827,1.7786,38404.0,38400.0,0.09590754]
[1643673738828,1.44515006,38404.0,38400.0,0.09590754]
[1643673739027,1.38,38404.0,38400.0,0.09590754]
[1643673739433,0.29316169,38401.0,38392.0,0.27923603]
[1643673739627,0.29316169,38401.0,38392.0,0.00101871]
[1643673740026,0.05,38401.0,38392.0,0.00101871]
[1643673740226,0.1,38403.0,38392.0,0.00101871]
[1643673740427,0.1,38403.0,38395.0,0.23057983]
[1643673740681,0.20419089,38405.0,38402.0,0.09560891]
[1643673741080,0.20419089,38405.0,38400.0,0.0010185]
[1643673741482,0.00123852,38411.0,38402.0,0.3]
[1643673741880,0.00123852,38411.0,38401.0,0.23566733]
[1643673742480,0.00123852,38411.0,38407.0,0.30670818]
[1643673742681,0.00123852,38411.0,38408.0,0.07927606]
[1643673742881,0.00123852,38411.0,38408.0,0.10222633]
[1643673743582,0.06077502,38413.0,38408.0,0.10222633]
[1643673743785,0.13026159,38414.0,38408.0,0.10222633]
[1643673743983,0.29883889,38419.0,38409.0,0.7]
[1643673744185,3.98586,38424.0,38410.0,0.23372122]
[1643673744186,0.42,38424.0,38410.0,0.23372122]
[1643673744431,0.00744056,38418.0,38408.0,0.10222633]
[1643673744734,0.00744056,38418.0,38414.0,0.10254007]
[1643673744735,0.415129,38415.0,38414.0,0.10254007]
[1643673745229,0.615129,38415.0,38414.0,0.10254007]
[1643673745830,0.25729723,38413.0,38404.0,0.00174854]
[1643673746033,0.25729723,38413.0,38390.0,0.372]
[1643673746034,0.065137,38411.0,38391.0,0.00010703]
[1643673746232,0.065149,38409.0,38391.0,0.00010703]
[1643673746431,1.72791433,38408.0,38391.0,0.00010703]
[1643673746629,1.72791433,38408.0,38384.0,0.41602229]
[1643673746829,0.28907283,38402.0,38399.0,0.08416274]
[1643673747031,0.28907283,38402.0,38383.0,0.00010703]
[1643673747032,0.23435707,38401.0,38383.0,0.00010703]
[1643673747230,0.23435707,38401.0,38365.0,0.065155]
[1643673747231,0.38435707,38401.0,38377.0,0.01740254]
[1643673747435,0.048,38400.0,38377.0,0.01740254]
[1643673747630,0.2766992,38399.0,38380.0,0.065149]
[1643673747830,0.4766992,38399.0,38383.0,0.352515]
[1643673748095,0.4766992,38399.0,38397.0,0.08178652]
[1643673748096,0.2,38399.0,38397.0,0.08178652]
[1643673748283,0.1,38399.0,38397.0,0.08178652]
[1643673748483,0.05,38399.0,38397.0,0.37424994]
[1643673748684,0.065146,38404.0,38397.0,0.37424994]
[1643673748886,0.25253404,38407.0,38397.0,0.37424994]
[1643673749283,0.25253404,38407.0,38397.0,0.66345013]
[1643673749484,0.25253404,38407.0,38397.0,0.65845013]
[1643673749885,0.25253404,38407.0,38397.0,0.07678652]
[1643673750092,0.065145,38405.0,38397.0,0.07678652]
[1643673750288,0.31404691,38404.0,38397.0,0.07678652]
[1643673750487,0.31404691,38404.0,38400.0,0.00133452]
[1643673750686,0.1,38403.0,38400.0,0.00133452]
[1643673750888,0.31831663,38403.0,38400.0,0.00133452]
[1643673751087,0.21831663,38403.0,38400.0,0.00133452]
[1643673751288,0.1,38404.0,38400.0,0.00133452]
[1643673751690,0.32074424,38404.0,38400.0,0.00133452]
[1643673751923,0.32074424,38404.0,38403.0,0.0847064]
[1643673752124,0.165144,38404.0,38403.0,0.0847064]
[1643673752323,0.215144,38404.0,38403.0,0.0847064]
[1643673752527,0.2816918,38408.0,38403.0,0.0847064]
[1643673752729,0.45,38407.0,38396.0,0.22277285]
[1643673752926,0.23506768,38406.0,38402.0,0.00165316]
[1643673753327,0.45,38405.0,38400.0,0.00133454]
[1643673753528,0.22997317,38404.0,38400.0,0.00133454]
[1643673753728,0.56025846,38404.0,38395.0,0.01958469]
[1643673754127,0.56025846,38404.0,38402.0,0.00124996]
[1643673754329,0.56025846,38404.0,38396.0,0.00356138]
[1643673754330,0.45,38402.0,38396.0,0.00356138]
[1643673754532,0.2198618,38398.0,38396.0,0.00356138]
[1643673754728,0.7601806,38397.0,38396.0,0.00356138]
[1643673754927,0.8081806,38397.0,38396.0,0.00356138]
[1643673755126,0.9081806,38397.0,38396.0,0.00356138]
[1643673755331,0.065161,38396.0,38391.0,0.09580781]
[1643673755584,0.23425783,38395.0,38387.0,0.3022411]
[1643673755773,0.098,38394.0,38387.0,0.3022411]
[1643673755975,0.16316023,38394.0,38387.0,0.3022411]
[1643673756173,0.05,38393.0,38387.0,0.3022411]
[1643673756672,0.26516023,38394.0,38391.0,0.10152062]
[1643673756872,0.22189558,38393.0,38387.0,0.3022411]
[1643673757275,0.22189558,38393.0,38386.0,0.02126573]
[1643673757276,0.32189558,38393.0,38386.0,0.02126573]
[1643673757475,0.048,38392.0,38386.0,0.02126573]
[1643673757677,0.065172,38391.0,38386.0,0.02126573]
[1643673757884,0.08410676,38389.0,38386.0,6.573e-05]
[1643673758074,0.048,38388.0,38386.0,6.573e-05]
[1643673758277,0.74627036,38387.0,38386.0,6.573e-05]
[1643673758475,0.99427036,38387.0,38386.0,6.573e-05]
[1643673758676,2.56852092,38387.0,38386.0,6.573e-05]
[1643673758875,2.93232092,38387.0,38385.0,0.0013216]